[Event "44th Chess Olympiad Women 2022"]
[Site "Chennai"]
[Date "2022.08.05"]
[Round "7.59"]
[White "Jonet, Davena"]
[Black "Sisior, Angelil"]
[Result "1-0"]
[WhiteElo "1458"]
[BlackElo "1488"]
[Annotator "NA"]
[PlyCount "89"]
[EventDate "2022.??.??"]
[TimeControl "60"]

1. e4 {[%emt 0:00:02]} c5 {[%emt 0:00:06]} 2. Bc4 {[%emt 0:00:14]} g6 {[%emt 0:
00:00]} 3. Nf3 {[%emt 0:01:03]} Bg7 {[%emt 0:00:40]} 4. d3 {[%emt 0:02:01]} Nf6
{[%emt 0:01:04]} 5. O-O {[%emt 0:06:14]} O-O {[%emt 0:01:02]} 6. Nc3 {[%emt 0:
00:00]} Nc6 {[%emt 0:01:18]} 7. Be3 {[%emt 0:02:05]} b6 {[%emt 0:02:24]} 8. Qd2
{[%emt 0:01:26]} Bb7 {[%emt 0:03:43]} 9. Rfe1 {[%emt 0:02:27]} Ng4 {[%emt 0:00:
00]} 10. Bf4 {[%emt 0:06:37]} Nce5 {[%emt 0:05:47]} 11. Nxe5 {[%emt 0:03:15]}
Nxe5 {[%emt 0:00:46]} 12. Bd5 {[%emt 0:04:15]} Bxd5 {[%emt 0:01:40]} 13. Nxd5 {
[%emt 0:02:02]} e6 {[%emt 0:01:40]} 14. Ne3 {[%emt 0:03:03]} Qh4 {[%emt 0:00:
00]} 15. Bg3 {[%emt 0:01:19]} Qh5 {[%emt 0:14:11]} 16. c3 {[%emt 0:03:33]} Bh6
{[%emt 0:02:44]} 17. f4 {[%emt 0:03:54]} Ng4 {[%emt 0:03:56]} 18. Qe2 {[%emt 0:
00:00]} Nxe3 {[%emt 0:05:45]} 19. Qxh5 {[%emt 0:01:14]} gxh5 {[%emt 0:00:21]}
20. Rxe3 {[%emt 0:00:21]} h4 {[%emt 0:09:06]} 21. Bxh4 {[%emt 0:01:30]} Bxf4 {
[%emt 0:00:35]} 22. Rf3 {[%emt 0:00:14]} Be5 {[%emt 0:06:43]} 23. Raf1 {
[%emt 0:00:33]} f5 {[%emt 0:05:26]} 24. exf5 {[%emt 0:00:58]} Bf6 {[%emt 0:00:
00]} 25. Bxf6 {[%emt 0:05:35]} Rxf6 {[%emt 0:00:00]} 26. fxe6 {[%emt 0:02:22]}
Rxe6 {[%emt 0:00:50]} 27. Rg3+ {[%emt 0:00:00]} Rg6 {[%emt 0:00:22]} 28. Rxg6+
{[%emt 0:01:57]} hxg6 {[%emt 0:00:04]} 29. Rf4 {[%emt 0:00:54]} Re8 {[%emt 0:
00:00]} 30. Kf2 {[%emt 0:00:24]} Kg7 {[%emt 0:00:28]} 31. Re4 {[%emt 0:00:46]}
Rxe4 {[%emt 0:02:31]} 32. dxe4 {[%emt 0:00:13]} Kf6 {[%emt 0:02:51]} 33. Kf3 {
[%emt 0:01:10]} Ke5 {[%emt 0:10:31]} 34. h4 {[%emt 0:00:23]} a5 {[%emt 0:01:42]
} 35. g4 {[%emt 0:04:13]} d6 {[%emt 0:03:52]} 36. a4 {[%emt 0:00:59]} d5 {
[%emt 0:00:51]} 37. exd5 {[%emt 0:00:20]} Kxd5 {[%emt 0:00:04]} 38. Kf4 {
[%emt 0:02:38]} Kc4 {[%emt 0:00:19]} 39. h5 {[%emt 0:00:31]} gxh5 {[%emt 0:00:
00]} 40. gxh5 {[%emt 0:00:03]} Kb3 {[%emt 0:00:05]} 41. h6 {[%emt 0:30:49]}
Kxa4 {[%emt 0:30:07]} 42. h7 {[%emt 0:00:43]} b5 {[%emt 0:00:00]} 43. h8=Q {
[%emt 0:00:00]} b4 {[%emt 0:00:00]} 44. Qg8 {[%emt 0:00:00]} bxc3 {[%emt 0:00:
00]} 45. Qc4# {[%emt 0:00:00]} 1-0

[Event "44th Chess Olympiad Women 2022"]
[Site "Chennai"]
[Date "2022.08.05"]
[Round "7.59"]
[White "Magno, Angelica"]
[Black "Seine, Rose Berline"]
[Result "0-1"]
[WhiteElo "1211"]
[BlackElo "1679"]
[Annotator "NA RC"]
[PlyCount "74"]
[EventDate "2022.??.??"]
[TimeControl "60"]

1. d4 {[%emt 0:00:05]} d5 {[%emt 0:00:04]} 2. Nf3 {[%emt 0:00:24]} Nf6 {
[%emt 0:00:14]} 3. c4 {[%emt 0:00:21]} e6 {[%emt 0:00:05]} 4. Nc3 {[%emt 0:00:
00]} Be7 {[%emt 0:00:36]} 5. Bg5 {[%emt 0:00:25]} O-O {[%emt 0:00:19]} 6. e3 {
[%emt 0:00:22]} Nbd7 {[%emt 0:00:12]} 7. Bd3 {[%emt 0:00:51]} dxc4 {[%emt 0:00:
00]} 8. Bxc4 {[%emt 0:01:11]} a6 {[%emt 0:00:09]} 9. O-O {[%emt 0:00:20]} b5 {
[%emt 0:00:05]} 10. Bd3 {[%emt 0:00:39]} Bb7 {[%emt 0:00:05]} 11. Re1 {[%emt 0:
00:00]} h6 {[%emt 0:00:16]} 12. Bf4 {[%emt 0:02:27]} Nh5 {[%emt 0:01:33]} 13.
Bg3 {[%emt 0:03:58]} Nxg3 {[%emt 0:00:12]} 14. fxg3 {[%emt 0:00:19]} c5 {
[%emt 0:00:13]} 15. Rc1 {[%emt 0:06:05]} Nf6 {[%emt 0:01:50]} 16. Qc2 {[%emt 0:
00:00]} Rc8 {[%emt 0:00:52]} 17. Be2 {[%emt 0:08:15]} Bxf3 {[%emt 0:01:46]} 18.
gxf3 {[%emt 0:01:25]} cxd4 {[%emt 0:00:05]} 19. Red1 {[%emt 0:02:45]} b4 {
[%emt 0:00:23]} 20. Rd2 {[%emt 0:01:06]} Qb6 21. Rxd4 Qa5 22. Qa4 {[%emt 0:00:
00]} Qxa4 {[%emt 0:00:11]} 23. Nxa4 {[%emt 0:01:03]} Rxc1+ {[%emt 0:01:08]} 24.
Kf2 {[%emt 0:00:30]} a5 {[%emt 0:00:07]} 25. f4 {[%emt 0:05:46]} Rd8 {[%emt 0:
00:00]} 26. Rxd8+ {[%emt 0:04:28]} Bxd8 {[%emt 0:05:01]} 27. b3 {[%emt 0:01:57]
} Rc2 {[%emt 0:00:19]} 28. Kf3 {[%emt 0:00:54]} Nd5 {[%emt 0:00:35]} 29. h4 {
[%emt 0:02:23]} Nc3 {[%emt 0:00:26]} 30. Bd3 {[%emt 0:00:43]} Rd2 {[%emt 0:00:
00]} 31. Ba6 {[%emt 0:05:54]} Nxa4 {[%emt 0:02:04]} 32. bxa4 {[%emt 0:00:24]}
Rxa2 {[%emt 0:00:07]} 33. Bb5 {[%emt 0:00:51]} Ra3 {[%emt 0:00:07]} 34. Ke4 {
[%emt 0:00:27]} Bb6 {[%emt 0:00:26]} 35. f5 {[%emt 0:00:53]} Rxe3+ {[%emt 0:00:
00]} 36. Kf4 {[%emt 0:00:25]} e5+ {[%emt 0:00:47]} 37. Kg4 {[%emt 0:00:48]} b3
{[%emt 0:00:23]} 0-1

[Event "44th Chess Olympiad Women 2022"]
[Site "Chennai"]
[Date "2022.08.05"]
[Round "7.59"]
[White "Sisior, Destiny"]
[Black "Cadeau, Merisena"]
[Result "1-0"]
[WhiteElo "1298"]
[BlackElo "1439"]
[Annotator "NA RC"]
[PlyCount "113"]
[EventDate "2022.??.??"]
[TimeControl "60"]

1. e4 {[%emt 0:00:05]} e5 {[%emt 0:00:06]} 2. Nc3 {[%emt 0:00:31]} Nf6 {
[%emt 0:00:31]} 3. Nf3 {[%emt 0:00:31]} Nc6 {[%emt 0:00:07]} 4. Bc4 {[%emt 0:
00:00]} Bc5 {[%emt 0:00:07]} 5. h3 {[%emt 0:00:55]} d6 {[%emt 0:00:28]} 6. d3 {
[%emt 0:01:16]} Be6 {[%emt 0:01:05]} 7. Bb5 {[%emt 0:00:44]} h6 {[%emt 0:04:31]
} 8. d4 {[%emt 0:00:30]} exd4 {[%emt 0:01:45]} 9. Nxd4 {[%emt 0:00:52]} Bd7 {
[%emt 0:03:09]} 10. Bxc6 {[%emt 0:02:35]} Bxc6 {[%emt 0:01:33]} 11. Nf5 {
[%emt 0:01:11]} O-O {[%emt 0:01:24]} 12. O-O {[%emt 0:03:02]} Nxe4 {[%emt 0:00:
00]} 13. Nxh6+ {[%emt 0:01:04]} Kh7 {[%emt 0:33:42]} 14. Nxe4 {[%emt 0:06:17]}
Bxe4 {[%emt 0:02:03]} 15. Qd2 {[%emt 0:06:57]} gxh6 {[%emt 0:03:22]} 16. Qxh6+
{[%emt 0:01:06]} Kg8 {[%emt 0:00:18]} 17. c3 {[%emt 0:03:13]} Qd7 {[%emt 0:00:
00]} 18. Bg5 {[%emt 0:01:50]} Qf5 {[%emt 0:01:40]} 19. Kh1 {[%emt 0:06:43]} Bd3
{[%emt 0:03:36]} 20. Rfd1 {[%emt 0:03:15]} Bxf2 {[%emt 0:03:22]} 21. Rd2 {
[%emt 0:00:20]} Bg3 {[%emt 0:00:54]} 22. Bf6 {[%emt 0:01:04]} Qh7 {[%emt 0:00:
00]} 23. Qg5+ {[%emt 0:00:52]} Qg6 {[%emt 0:00:13]} 24. Rxd3 {[%emt 0:00:19]}
Qxg5 {[%emt 0:04:53]} 25. Bxg5 {[%emt 0:00:32]} Be5 {[%emt 0:00:52]} 26. Rf1 {
[%emt 0:02:08]} f6 {[%emt 0:01:35]} 27. Bf4 {[%emt 0:00:50]} Rf7 {[%emt 0:00:
00]} 28. g3 {[%emt 0:01:40]} Kg7 {[%emt 0:01:26]} 29. Kg2 {[%emt 0:05:03]} Re8
{[%emt 0:03:41]} 30. Re1 {[%emt 0:00:00]} Ree7 {[%emt 0:01:42]} 31. Rde3 {
[%emt 0:00:00]} Kg6 {[%emt 0:03:41]} 32. Kf3 {[%emt 0:00:00]} Rh7 {[%emt 0:00:
00]} 33. h4 {[%emt 0:00:23]} Rd7 {[%emt 0:03:53]} 34. R1e2 {[%emt 0:01:11]} c5
{[%emt 0:00:36]} 35. Rd3 {[%emt 0:01:33]} Rhe7 {[%emt 0:02:56]} 36. Red2 {
[%emt 0:02:25]} Bxf4 {[%emt 0:01:20]} 37. Kxf4 {[%emt 0:00:25]} Re6 {[%emt 0:
00:00]} 38. h5+ {[%emt 0:02:03]} Kxh5 {[%emt 0:00:16]} 39. Kf5 {[%emt 0:00:10]}
Re5+ {[%emt 0:00:57]} 40. Kxf6 {[%emt 0:00:23]} Kg4 {[%emt 0:03:03]} 41. a4 {
[%emt 0:37:45]} a5 {[%emt 0:01:51]} 42. Rh2 {[%emt 0:00:00]} Rh5 {[%emt 0:00:
00]} 43. Rxh5 {[%emt 0:00:00]} Kxh5 {[%emt 0:00:06]} 44. Ke6 {[%emt 0:00:00]}
Rg7 {[%emt 0:04:51]} 45. Kxd6 {[%emt 0:00:00]} c4 {[%emt 0:03:44]} 46. Rd5+ {
[%emt 0:00:00]} Kg4 {[%emt 0:00:31]} 47. Rxa5 {[%emt 0:00:00]} Kxg3 {[%emt 0:
00:00]} 48. Rb5 {[%emt 0:00:00]} Kf4 {[%emt 0:00:55]} 49. Rd5 {[%emt 0:00:00]}
Rg6+ {[%emt 0:04:59]} 50. Kc5 {[%emt 0:00:00]} Rc6+ {[%emt 0:00:14]} 51. Kb5 {
[%emt 0:00:00]} Ke4 {[%emt 0:00:15]} 52. Rd4+ {[%emt 0:00:00]} Ke5 {[%emt 0:00:
00]} 53. Rd7 {[%emt 0:00:00]} Ke6 {[%emt 0:00:44]} 54. Rxb7 {[%emt 0:00:00]}
Kd6 {[%emt 0:00:14]} 55. Kb4 {[%emt 0:00:00]} Rc8 {[%emt 0:03:20]} 56. a5 {
[%emt 0:00:00]} Ra8 {[%emt 0:00:45]} 57. Kb5 {[%emt 0:00:00]} 1-0

[Event "44th Chess Olympiad Women 2022"]
[Site "Chennai"]
[Date "2022.08.05"]
[Round "7.60"]
[White "Nosimilo, Mkhonto"]
[Black "Farrugia, Jamie"]
[Result "0-1"]
[WhiteElo "1313"]
[BlackElo "1547"]
[Annotator "NA"]
[PlyCount "74"]
[EventDate "2022.??.??"]
[TimeControl "60"]

1. e4 {[%emt 0:00:07]} e5 {[%emt 0:00:05]} 2. Nf3 {[%emt 0:00:03]} Nc6 {
[%emt 0:00:11]} 3. Bc4 {[%emt 0:00:13]} Bc5 {[%emt 0:00:06]} 4. c3 {[%emt 0:00:
00]} Nf6 {[%emt 0:00:18]} 5. d3 {[%emt 0:00:10]} d6 {[%emt 0:00:41]} 6. Bb3 {
[%emt 0:00:11]} Bg4 {[%emt 0:01:00]} 7. Nbd2 {[%emt 0:00:48]} Qe7 {[%emt 0:00:
00]} 8. h3 {[%emt 0:04:25]} Bh5 {[%emt 0:00:13]} 9. Nf1 {[%emt 0:01:42]} Qd7 {
[%emt 0:03:36]} 10. Ng3 {[%emt 0:01:08]} Bg6 {[%emt 0:00:32]} 11. O-O {[%emt 0:
00:00]} O-O-O {[%emt 0:05:56]} 12. Re1 {[%emt 0:02:59]} Nh5 {[%emt 0:03:29]}
13. Nxh5 {[%emt 0:12:00]} Bxh5 {[%emt 0:00:07]} 14. Be3 {[%emt 0:02:00]} f5 {
[%emt 0:07:22]} 15. exf5 {[%emt 0:30:13]} Qxf5 {[%emt 0:07:28]} 16. g4 {
[%emt 0:16:59]} Bxg4 {[%emt 0:00:33]} 17. hxg4 {[%emt 0:00:04]} Qxg4+ {[%emt 0:
00:00]} 18. Kf1 {[%emt 0:01:06]} Qh3+ {[%emt 0:02:06]} 19. Ke2 {[%emt 0:00:53]}
Rhf8 {[%emt 0:17:11]} 20. Ng1 {[%emt 0:08:30]} Qg2 {[%emt 0:13:59]} 21. Rf1 {
[%emt 0:03:03]} Rf6 {[%emt 0:06:32]} 22. Qe1 {[%emt 0:04:48]} Ne7 {[%emt 0:00:
00]} 23. Kd2 {[%emt 0:04:49]} e4 {[%emt 0:13:24]} 24. d4 {[%emt 0:01:03]} Bb6 {
[%emt 0:00:55]} 25. Qe2 {[%emt 0:00:23]} Nf5 {[%emt 0:01:13]} 26. Rae1 {
[%emt 0:00:55]} Rdf8 {[%emt 0:00:47]} 27. Bd1 {[%emt 0:01:12]} Nxe3 {[%emt 0:
00:00]} 28. Kxe3 {[%emt 0:01:02]} Qg5+ {[%emt 0:00:26]} 29. f4 {[%emt 0:00:36]}
exf3+ {[%emt 0:00:13]} 30. Kd3 {[%emt 0:00:04]} fxe2 {[%emt 0:00:00]} 31. Bxe2
{[%emt 0:00:15]} Rxf1 {[%emt 0:00:00]} 32. Rxf1 {[%emt 0:00:51]} Rxf1 {[%emt 0:
00:00]} 33. Bxf1 {[%emt 0:00:09]} Qxg1 {[%emt 0:00:00]} 34. Be2 {[%emt 0:00:39]
} g5 {[%emt 0:00:00]} 35. c4 {[%emt 0:00:20]} Bxd4 {[%emt 0:00:00]} 36. b4 {
[%emt 0:00:16]} Qe3+ {[%emt 0:00:00]} 37. Kc2 {[%emt 0:00:11]} Qxe2+ {[%emt 0:
00:00]} 0-1

[Event "44th Chess Olympiad Women 2022"]
[Site "Chennai"]
[Date "2022.08.05"]
[Round "7.60"]
[White "Stagno, Milena"]
[Black "Nomcebo, Sibisi"]
[Result "1-0"]
[WhiteElo "1448"]
[BlackElo "1225"]
[Annotator "NA RC"]
[PlyCount "120"]
[EventDate "2022.??.??"]
[TimeControl "60"]

1. e4 {[%emt 0:00:05]} g6 {[%emt 0:00:28]} 2. d4 {[%emt 0:00:12]} d6 {[%emt 0:
00:00]} 3. Nf3 {[%emt 0:00:14]} Bg7 {[%emt 0:00:28]} 4. Nc3 {[%emt 0:00:19]}
Nf6 {[%emt 0:03:05]} 5. h3 {[%emt 0:03:28]} a6 {[%emt 0:00:20]} 6. Be3 {
[%emt 0:00:34]} b5 {[%emt 0:00:10]} 7. a3 {[%emt 0:00:53]} Nbd7 {[%emt 0:00:18]
} 8. Bd3 {[%emt 0:05:12]} O-O {[%emt 0:03:59]} 9. e5 {[%emt 0:00:01]} Ne8 {
[%emt 0:03:07]} 10. Be4 {[%emt 0:02:47]} Rb8 {[%emt 0:00:14]} 11. Qd2 {[%emt 0:
00:00]} Bb7 {[%emt 0:02:41]} 12. Bxb7 {[%emt 0:00:41]} Rxb7 {[%emt 0:00:15]}
13. e6 {[%emt 0:03:34]} Nb6 {[%emt 0:03:15]} 14. Ng5 {[%emt 0:02:37]} Nc4 {
[%emt 0:01:44]} 15. exf7+ {[%emt 0:04:49]} Rxf7 {[%emt 0:01:44]} 16. Nxf7 {
[%emt 0:00:23]} Kxf7 {[%emt 0:00:43]} 17. Qe2 {[%emt 0:00:46]} Nxe3 {[%emt 0:
00:00]} 18. fxe3 {[%emt 0:00:42]} d5 {[%emt 0:00:43]} 19. Qf3+ {[%emt 0:02:57]}
Nf6 {[%emt 0:00:26]} 20. Rf1 {[%emt 0:00:46]} Kg8 {[%emt 0:00:28]} 21. g4 {
[%emt 0:01:17]} c6 {[%emt 0:00:51]} 22. h4 {[%emt 0:01:55]} e6 {[%emt 0:02:08]}
23. g5 {[%emt 0:01:35]} Nh5 {[%emt 0:04:51]} 24. Ne2 {[%emt 0:04:14]} e5 {
[%emt 0:04:41]} 25. dxe5 {[%emt 0:02:51]} Bxe5 {[%emt 0:00:30]} 26. Nd4 {
[%emt 0:00:05]} Qe8 {[%emt 0:04:53]} 27. Ne6 {[%emt 0:03:44]} Rf7 {[%emt 0:00:
00]} 28. Qxf7+ {[%emt 0:00:12]} Qxf7 {[%emt 0:00:10]} 29. Rxf7 {[%emt 0:00:03]}
Kxf7 {[%emt 0:00:08]} 30. Nd8+ {[%emt 0:00:32]} Ke8 {[%emt 0:00:46]} 31. Nxc6 {
[%emt 0:00:39]} Bxb2 {[%emt 0:00:07]} 32. Rd1 {[%emt 0:01:37]} Kd7 {[%emt 0:00:
00]} 33. Nb8+ {[%emt 0:00:27]} Ke6 {[%emt 0:00:32]} 34. Nxa6 {[%emt 0:00:16]}
Bxa3 {[%emt 0:01:07]} 35. Nc7+ {[%emt 0:00:09]} Kf5 {[%emt 0:01:13]} 36. Rxd5+
{[%emt 0:00:28]} Kg4 {[%emt 0:00:48]} 37. Rd4+ {[%emt 0:02:33]} Kf5 {[%emt 0:
00:00]} 38. Nxb5 {[%emt 0:02:29]} Bc1 {[%emt 0:01:37]} 39. Kf2 {[%emt 0:07:28]}
Ke6 {[%emt 0:04:01]} 40. c4 {[%emt 0:03:17]} Ng7 {[%emt 0:00:43]} 41. e4 {
[%emt 0:36:05]} Bb2 {[%emt 0:32:22]} 42. Rd5 {[%emt 0:02:32]} Ne8 {[%emt 0:00:
00]} 43. c5 {[%emt 0:01:27]} Bc1 {[%emt 0:02:37]} 44. Kf3 {[%emt 0:05:28]} h6 {
[%emt 0:00:12]} 45. c6 {[%emt 0:00:43]} hxg5 {[%emt 0:00:06]} 46. hxg5 {
[%emt 0:00:06]} Bxg5 {[%emt 0:00:33]} 47. Rxg5 {[%emt 0:01:27]} Ke7 {[%emt 0:
00:00]} 48. Rxg6 {[%emt 0:01:09]} Kd8 {[%emt 0:01:00]} 49. Rg8 {[%emt 0:00:35]}
Ke7 {[%emt 0:00:09]} 50. c7 {[%emt 0:00:21]} Nxc7 {[%emt 0:00:13]} 51. Nxc7 {
[%emt 0:00:05]} Kd7 {[%emt 0:00:16]} 52. Nd5 {[%emt 0:00:14]} Ke6 {[%emt 0:00:
00]} 53. Kf4 {[%emt 0:00:30]} Kf7 {[%emt 0:00:08]} 54. Ra8 {[%emt 0:00:28]} Ke6
{[%emt 0:00:06]} 55. Ra6+ {[%emt 0:00:05]} Kf7 {[%emt 0:00:10]} 56. Kg5 {
[%emt 0:00:16]} Ke8 {[%emt 0:00:22]} 57. Ra7 {[%emt 0:00:04]} Kd8 {[%emt 0:00:
00]} 58. e5 {[%emt 0:00:07]} Ke8 {[%emt 0:00:16]} 59. Kf6 {[%emt 0:00:19]} Kd8
{[%emt 0:00:10]} 60. e6 {[%emt 0:00:15]} Kc8 {[%emt 0:00:06]} 1-0

[Event "44th Chess Olympiad Women 2022"]
[Site "Chennai"]
[Date "2022.08.05"]
[Round "7.60"]
[White "Thornton, Filipina"]
[Black "Nkwanyane Nolwazi"]
[Result "1-0"]
[WhiteElo "1661"]
[BlackElo "1158"]
[Annotator "NA RC"]
[PlyCount "107"]
[EventDate "2022.??.??"]
[TimeControl "60"]

1. d4 {[%emt 0:00:07]} Nf6 {[%emt 0:00:24]} 2. c4 {[%emt 0:00:06]} g6 {[%emt 0:
00:00]} 3. Nc3 {[%emt 0:00:07]} d6 {[%emt 0:00:06]} 4. e4 {[%emt 0:00:41]} Bg7
{[%emt 0:00:27]} 5. Nf3 {[%emt 0:00:32]} O-O {[%emt 0:00:10]} 6. Be2 {[%emt 0:
00:00]} Nbd7 {[%emt 0:01:48]} 7. O-O {[%emt 0:00:31]} e5 {[%emt 0:01:30]} 8. d5
{[%emt 0:00:33]} h6 {[%emt 0:04:30]} 9. b4 {[%emt 0:01:27]} a6 {[%emt 0:04:04]}
10. Qc2 {[%emt 0:04:06]} Nh7 {[%emt 0:07:25]} 11. Be3 {[%emt 0:00:23]} f5 {
[%emt 0:07:12]} 12. exf5 {[%emt 0:02:21]} Rxf5 {[%emt 0:01:07]} 13. Bd3 {
[%emt 0:00:14]} Rf8 {[%emt 0:14:46]} 14. Bxg6 {[%emt 0:00:16]} Ndf6 {[%emt 0:
00:00]} 15. Rad1 {[%emt 0:01:02]} Bg4 {[%emt 0:01:29]} 16. Qe2 {[%emt 0:01:41]}
Bh5 {[%emt 0:11:41]} 17. Bxh5 {[%emt 0:02:31]} Nxh5 {[%emt 0:00:22]} 18. Ne4 {
[%emt 0:01:44]} N7f6 {[%emt 0:05:39]} 19. Nfd2 {[%emt 0:01:24]} Qd7 {[%emt 0:
00:00]} 20. h3 {[%emt 0:01:35]} Nxe4 {[%emt 0:02:20]} 21. Nxe4 {[%emt 0:00:18]}
Nf4 {[%emt 0:01:38]} 22. Qd2 {[%emt 0:01:25]} Qf7 {[%emt 0:03:51]} 23. c5 {
[%emt 0:00:47]} Qg6 {[%emt 0:03:07]} 24. Bxf4 {[%emt 0:06:33]} Rxf4 {[%emt 0:
00:00]} 25. f3 {[%emt 0:01:58]} Raf8 {[%emt 0:00:59]} 26. Qe2 {[%emt 0:00:59]}
R8f5 {[%emt 0:03:40]} 27. Kh2 {[%emt 0:02:06]} Rf8 {[%emt 0:05:41]} 28. cxd6 {
[%emt 0:01:14]} cxd6 {[%emt 0:00:06]} 29. Rc1 {[%emt 0:00:54]} h5 {[%emt 0:00:
00]} 30. Rc7 {[%emt 0:01:04]} R8f7 {[%emt 0:00:32]} 31. Rxf7 {[%emt 0:01:19]}
Rxf7 {[%emt 0:00:26]} 32. Rc1 {[%emt 0:01:45]} Bh6 {[%emt 0:01:11]} 33. Rc8+ {
[%emt 0:00:12]} Kg7 {[%emt 0:00:27]} 34. Rd8 {[%emt 0:01:42]} Rc7 {[%emt 0:00:
00]} 35. Rxd6 {[%emt 0:11:32]} Bf4+ {[%emt 0:00:53]} 36. Kg1 {[%emt 0:05:52]}
Rc1+ {[%emt 0:00:08]} 37. Kf2 {[%emt 0:00:15]} Bg3+ {[%emt 0:00:48]} 38. Ke3 {
[%emt 0:03:43]} Bf4+ {[%emt 0:00:40]} 39. Kd3 {[%emt 0:01:18]} Qe8 {[%emt 0:00:
00]} 40. Rb6 {[%emt 0:16:34]} Qc8 {[%emt 0:00:31]} 41. Nc5 {[%emt 0:31:05]}
Rxc5 {[%emt 0:16:08]} 42. bxc5 {[%emt 0:00:00]} Qxc5 {[%emt 0:00:11]} 43. Rxb7+
{[%emt 0:00:00]} Kf6 {[%emt 0:00:19]} 44. Qe4 {[%emt 0:00:00]} Qf2 {[%emt 0:00:
00]} 45. Kc3 {[%emt 0:02:28]} Qd2+ {[%emt 0:04:04]} 46. Kb3 {[%emt 0:02:14]}
Qd1+ {[%emt 0:01:55]} 47. Kb4 {[%emt 0:03:12]} Qd2+ {[%emt 0:01:59]} 48. Kc5 {
[%emt 0:01:28]} Qc3+ {[%emt 0:01:16]} 49. Kd6 {[%emt 0:02:26]} Qa3+ {[%emt 0:
00:00]} 50. Kc7 {[%emt 0:02:31]} Qe7+ {[%emt 0:00:56]} 51. Kb8 {[%emt 0:00:54]}
Qd8+ {[%emt 0:01:28]} 52. Ka7 {[%emt 0:00:22]} Bg3 {[%emt 0:01:20]} 53. Rb6+ {
[%emt 0:02:45]} Kg5 {[%emt 0:00:06]} 54. Rg6# {[%emt 0:00:25]} 1-0

[Event "44th Chess Olympiad Women 2022"]
[Site "Chennai"]
[Date "2022.08.05"]
[Round "7.61"]
[White "Al Balushi, Mariya"]
[Black "Shariff, Sasha Christina"]
[Result "0-1"]
[WhiteElo "1660"]
[BlackElo "1183"]
[Annotator "NA"]
[PlyCount "56"]
[EventDate "2022.??.??"]
[TimeControl "60"]

1. e4 {[%emt 0:00:02]} e5 {[%emt 0:00:06]} 2. Nf3 {[%emt 0:00:06]} Nc6 {
[%emt 0:00:03]} 3. Bb5 {[%emt 0:00:13]} Nf6 {[%emt 0:01:30]} 4. d3 {[%emt 0:00:
00]} d6 {[%emt 0:06:35]} 5. h3 {[%emt 0:00:38]} Bd7 {[%emt 0:01:29]} 6. c3 {
[%emt 0:03:09]} a6 {[%emt 0:02:48]} 7. Ba4 {[%emt 0:01:25]} b5 {[%emt 0:02:04]}
8. Bb3 {[%emt 0:00:40]} Be6 {[%emt 0:07:48]} 9. Ng5 {[%emt 0:08:10]} Bxb3 {
[%emt 0:04:08]} 10. Qxb3 {[%emt 0:00:11]} d5 {[%emt 0:01:35]} 11. O-O {[%emt 0:
00:00]} h6 {[%emt 0:03:05]} 12. Nf3 {[%emt 0:01:14]} dxe4 {[%emt 0:03:06]} 13.
dxe4 {[%emt 0:01:11]} Nxe4 {[%emt 0:00:40]} 14. Re1 {[%emt 0:01:47]} Nc5 {
[%emt 0:00:27]} 15. Qc2 {[%emt 0:01:22]} Bd6 {[%emt 0:03:07]} 16. Bf4 {[%emt 0:
00:00]} Qf6 {[%emt 0:04:54]} 17. b4 {[%emt 0:03:21]} Qxf4 {[%emt 0:09:16]} 18.
bxc5 {[%emt 0:01:33]} Bxc5 {[%emt 0:00:31]} 19. Re4 {[%emt 0:02:46]} Qf6 {
[%emt 0:01:50]} 20. Nbd2 {[%emt 0:04:59]} O-O {[%emt 0:03:54]} 21. c4 {[%emt 0:
00:00]} Qd6 {[%emt 0:14:03]} 22. Rd1 {[%emt 0:01:48]} Rad8 {[%emt 0:02:35]} 23.
cxb5 {[%emt 0:06:01]} axb5 {[%emt 0:02:58]} 24. Qb2 {[%emt 0:00:14]} f5 {
[%emt 0:06:25]} 25. Re2 {[%emt 0:05:30]} e4 {[%emt 0:01:06]} 26. Ne1 {[%emt 0:
00:00]} Nd4 {[%emt 0:02:42]} 27. Nb1 {[%emt 0:01:48]} Nxe2+ {[%emt 0:00:47]}
28. Qxe2 {[%emt 0:01:06]} Qxd1 {[%emt 0:00:09]} 0-1

[Event "44th Chess Olympiad Women 2022"]
[Site "Chennai"]
[Date "2022.08.05"]
[Round "7.61"]
[White "Johnson, Nellisha"]
[Black "Al Bulushi, Rawan"]
[Result "0-1"]
[WhiteElo "1093"]
[BlackElo "1442"]
[Annotator "NA RC"]
[PlyCount "74"]
[EventDate "2022.??.??"]
[TimeControl "60"]

1. e4 {[%emt 0:00:04]} c5 {[%emt 0:00:25]} 2. Nf3 {[%emt 0:00:14]} d6 {[%emt 0:
00:00]} 3. Nc3 {[%emt 0:01:08]} Nf6 {[%emt 0:00:46]} 4. h3 {[%emt 0:00:51]} Nc6
{[%emt 0:01:12]} 5. d4 {[%emt 0:04:29]} cxd4 {[%emt 0:01:16]} 6. Nxd4 {[%emt 0:
00:00]} e5 {[%emt 0:00:38]} 7. Nf3 {[%emt 0:02:28]} Be7 {[%emt 0:01:11]} 8. Bc4
{[%emt 0:02:09]} a6 {[%emt 0:02:41]} 9. O-O {[%emt 0:01:14]} O-O {[%emt 0:00:
00]} 10. Re1 {[%emt 0:03:07]} Na5 {[%emt 0:04:54]} 11. Bd5 {[%emt 0:02:41]} Rb8
{[%emt 0:06:16]} 12. Bg5 {[%emt 0:09:02]} Nxd5 {[%emt 0:01:47]} 13. Bxe7 {
[%emt 0:05:44]} Nxe7 {[%emt 0:00:23]} 14. Ne2 {[%emt 0:03:04]} Ng6 {[%emt 0:00:
00]} 15. Qd3 {[%emt 0:02:06]} Be6 {[%emt 0:06:03]} 16. b3 {[%emt 0:00:42]} d5 {
[%emt 0:08:44]} 17. c3 {[%emt 0:03:49]} dxe4 {[%emt 0:02:02]} 18. Qxe4 {
[%emt 0:00:57]} Bd5 {[%emt 0:00:58]} 19. Qe3 {[%emt 0:00:26]} Qf6 {[%emt 0:00:
00]} 20. Nh2 {[%emt 0:05:48]} Nc6 {[%emt 0:08:27]} 21. Rad1 {[%emt 0:01:12]}
Be6 {[%emt 0:00:52]} 22. Rd3 {[%emt 0:07:10]} Nf4 {[%emt 0:03:26]} 23. Rd2 {
[%emt 0:05:04]} Nxe2+ {[%emt 0:01:45]} 24. Rexe2 {[%emt 0:00:35]} Rfd8 {
[%emt 0:00:46]} 25. Nf3 {[%emt 0:01:15]} Rxd2 {[%emt 0:01:15]} 26. Rxd2 {
[%emt 0:00:33]} Qf4 {[%emt 0:01:34]} 27. Qe1 {[%emt 0:03:55]} Bxh3 {[%emt 0:00:
00]} 28. Qd1 {[%emt 0:08:23]} Bg4 {[%emt 0:01:33]} 29. g3 {[%emt 0:09:42]} Qxf3
{[%emt 0:00:25]} 30. Qxf3 {[%emt 0:02:33]} Bxf3 {[%emt 0:00:08]} 31. Rd3 {
[%emt 0:01:23]} e4 {[%emt 0:00:11]} 32. Rd7 {[%emt 0:01:10]} Rd8 {[%emt 0:00:
00]} 33. Rxd8+ {[%emt 0:01:22]} Nxd8 {[%emt 0:00:07]} 34. Kf1 {[%emt 0:00:17]}
h5 {[%emt 0:00:41]} 35. Ke1 {[%emt 0:00:22]} g5 {[%emt 0:00:07]} 36. Kd2 {
[%emt 0:01:26]} h4 {[%emt 0:00:09]} 37. gxh4 {[%emt 0:01:02]} gxh4 {[%emt 0:00:
00]} 0-1